Cogmind - Beta 15 @@@ ROGUE MODE // 2025.07.18 @ 21:38:34 Player: EX-OCT Result: Destroyed by Autobeam Turret with Autobeam Performance ------------- Evolutions (0) 0 Regions Visited (2) 400 Robots Destroyed (25) 125 Value Destroyed (642) 642 Prototype IDs (1) 20 Alien Tech Used (0) 0 Bonus (0) 0 TOTAL SCORE: 1187 Bonus ------- None Cogmind --------- Core Integrity 0/250 Matter 154/300 Energy 276/280 System Corruption 0% Temperature Cool (6) Movement Rolling (145) Ox3 Location -10/Subcaves Parts ------- > --- POWER (1) -------- Heavy Ion Engine > --- PROPULSION (2) --- Light Treads Compact Wheel > --- UTILITY (2) ------ High-capacity Storage Unit Makeshift Thermal Plating > --- WEAPON (2) ------- Improved Light Cannon Subdweller Shrapnel Launcher > --- INVENTORY (20) --- Light Treads Wheel Structural Scanner Subdweller Optics Subdweller Machine Gun SUBCON Basin (Full) Peak State ------------ > --- POWER ------------ Heavy Ion Engine > --- PROPULSION ------- Light Treads Compact Wheel > --- UTILITY ---------- High-capacity Storage Unit Makeshift Thermal Plating > --- WEAPON ----------- Subdweller Machine Gun Improved Light Cannon > --- INVENTORY -------- Light Treads Wheel Structural Scanner Subdweller Optics Subdweller Shrapnel Launcher SUBCON Basin [Rating: 32] Favorites ----------- Power Heavy Ion Engine Engine Heavy Ion Engine Propulsion Compact Wheel Treads Light Treads Wheel Compact Wheel Utility High-capacity Storage Unit Device Structural Scanner Storage High-capacity Storage Unit Protection Light Armor Plating Weapon Improved Light Cannon Ballistic Gun Assault Rifle Ballistic Cannon Improved Light Cannon Launcher Subdweller Shrapnel Launcher Impact Weapon Hammer Build | -11 -10 -10 ------- Run | Yrd Mat Sub Slots Evolved . | . . . Power . | . . . Propulsion . | . . . Utility . | . . . Weapon . | . . . Parts Attached 27 | 5 14 8 Power 2 | 1 1 . Engine 2 | 1 1 . Core . | . . . Reactor . | . . . Propulsion 6 | 2 2 2 Treads 3 | 1 1 1 Leg . | . . . Wheel 3 | 1 1 1 Hover . | . . . Flight . | . . . Utility 8 | . 5 3 Device 2 | . 1 1 Storage 2 | . 2 . Processor . | . . . Hackware . | . . . Protection 4 | . 2 2 Artifact . | . . . Weapon 11 | 2 6 3 Energy Gun . | . . . Energy Cannon . | . . . Ballistic Gun 4 | 2 1 1 Ballistic Cannon 4 | . 3 1 Launcher 2 | . 1 1 Special Weapon . | . . . Impact Weapon 1 | . 1 . Slashing Weapon . | . . . Piercing Weapon . | . . . Special Melee Weapon . | . . . Unidentified Prototypes 1 | . 1 . Parts Lost 5 | . 2 3 Power . | . . . Propulsion 2 | . 1 1 Utility 2 | . 1 1 Weapon 1 | . . 1 Highest Loss Streak 3 | . 1 3 To Critical Strikes . | . . . Average Backups 10 | 2 9 12 Power . | . . . Propulsion 2 | 1 2 3 Utility 3 | . 2 4 Weapon 3 | . 3 3 Tool/Special . | . . . Unused Backups 7 | . 3 4 Power 2 | . 1 1 Propulsion 1 | . . 1 Utility 3 | . 1 2 Weapon 1 | . 1 . Tool/Special . | . . . Average Slot Usage (%) 97 | . 96 99 Engine 14 | . 14 14 Treads 12 | . 11 14 Wheel 15 | . 15 13 Device 7 | . 5 10 Storage 12 | . 11 14 Protection 6 | . 8 3 Ballistic Gun 2 | . 3 1 Ballistic Cannon 22 | . 19 25 Impact Weapon 3 | . 5 . Peak Build Rating 32 | 5 12 32 Average Rating 12 | 4 10 15 On Entrance 5 | . 5 12 Naked Turns . | . . . Heaviest Build 64 | 6 59 64 Greatest Support 26 | 16 26 16 Greatest Overweight (x) 3 | . 3 3 Average Overweight (x) 2 | . 2 3 Largest Inventory Capacity 20 | 5 20 20 Average Capacity 18 | 5 17 20 Most Carried 20 | 3 14 20 Average Carried 11 | 2 9 14 Final Capacity 20 | 5 20 20 Final Carried 20 | 3 14 20 Class Distribution -------------------- 100% | Mutant Dominant Class ---------------- Mutant | -10/Materials Mutant | -10/Subcaves Resources | -11 -10 -10 ----------- Run | Yrd Mat Sub Matter Collected 1222 | 274 655 293 Remotely . | . . . Salvage Created 563 | 79 358 126 Parts 33 | 3 20 10 Haulers Intercepted 1 | . 1 . Recyclers Shooed 2 | . 2 . Parts Field Recycled . | . . . Retrieved Matter . | . . . Parts Self-Destructed 6 | . . 6 Prevented . | . . . Kills | -11 -10 -10 ------- Run | Yrd Mat Sub Combat Hostiles Destroyed 21 | . 12 9 Guns 2 | . 2 . Cannons 12 | . 7 5 AOE 7 | . 3 4 Classes Destroyed 7 | 2 5 . Builder 1 | . 1 . Tunneler 1 | 1 . . Hauler 1 | . 1 . Recycler 1 | 1 . . Swarmer 7 | . 3 4 Grunt 10 | . 8 2 Subdweller 4 | . 1 3 Best Kill Streak 5 | 2 5 4 Combat Bots Only 5 | . 5 4 Max Kills in Single Turn 2 | 1 2 2 Gunslinging . | . . . Exploded 2 | . 1 2 Melee . | . . . Uniques/NPCs Destroyed . | . . . Combat | -11 -10 -10 -------- Run | Yrd Mat Sub Hostile Shots Fired 147 | . 83 64 Missed 38 | . 20 18 Hits 109 | . 63 46 Projectile 109 | . 63 46 Critical Strikes 2 | . 2 . Damage Taken 1526 | . 742 784 Core 252 | . 160 92 Absorbed by Shields . | . . . Ignored by Resistances 4 | . . 4 Core Remaining (%) 100 | 100 . . Volleys Fired 90 | 6 55 29 Largest 2 | 2 2 2 Hottest 73 | 40 66 73 Shots Fired 163 | 12 102 49 Gun 39 | 12 26 1 Cannon 116 | . 73 43 Launcher 8 | . 3 5 Special . | . . . Kinetic 160 | 12 99 49 Thermal . | . . . Explosive 3 | . 3 . Electromagnetic . | . . . Robot Hit Streak 12 | 4 12 12 Robot Miss Streak 5 | 1 5 3 Penetration Max . | . . . Secondary Targets . | . . . Shots Hit Robots 100 | 8 61 31 Core Hits 37 | 3 22 12 Critical Kills . | . . . Critical Parts Destroyed . | . . . Critical Strikes 3 | . 2 1 Blast 3 | . 2 1 Melee Attacks 2 | . 2 . Impact 2 | . 2 . Slashing . | . . . Piercing . | . . . Sneak Attacks . | . . . Combat Hostiles . | . . . Follow-up Attacks . | . . . Damage Inflicted 2268 | 76 1326 866 Guns 319 | 76 243 . Cannons 1444 | . 858 586 Explosions 496 | . 216 280 Melee . | . . . Ramming 9 | . 9 . Kinetic 2043 | 76 1101 866 Thermal . | . . . Explosive 216 | . 216 . Electromagnetic . | . . . Impact . | . . . Slashing . | . . . Piercing . | . . . Highest Corruption . | . . . Average Corruption . | . . . Corruption Purged . | . . . Corruption Blocked . | . . . Overload Shots . | . . . Overflow Damage 64 | . 49 15 Projectiles 35 | . 35 . Explosions 29 | . 14 15 Melee . | . . . Knockbacks 18 | . 16 2 Impact . | . . . Kinetic 17 | . 15 2 Secondary 1 | . 1 . Self-Inflicted Damage 123 | . 23 100 Shots 6 | . 3 3 Rammed 1 | . 1 . Targets Rammed 1 | . 1 . Kicked . | . . . Crushed . | . . . Highest Temperature 180 | . 180 7 Average Temperature 45 | . 45 7 Received Heat Transfer 540 | . 288 252 Siege Activations . | . . . Martial Activations . | . . . Shielding Activations . | . . . Robots Disrupted . | . . . Combat Hostiles . | . . . Robots Corrupted . | . . . Combat Hostiles . | . . . Parts Fried . | . . . Impact Corruptions . | . . . Robots Melted . | . . . Combat Hostiles . | . . . Parts Melted . | . . . Heat Transferred . | . . . Parts Sabotaged . | . . . Parts Stolen . | . . . Parts Stripped . | . . . Power Chain Reactions . | . . . Alert | -11 -10 -10 ------- Run | Yrd Mat Sub Maximum Alert Level . | . . . Low Security (%) 100 | 100 100 . Level 1 . | . . . Level 2 . | . . . Level 3 . | . . . Level 4 . | . . . Level 5 . | . . . High Security . | . . . Max Security . | . . . Peak Influence 145 | 10 145 . Initial . | . . . Average 34 | . 35 . Influence Increases 604 | 10 404 190 Destroy 0b10 Robot/C 340 | . 220 120 Destroy 0b10 Robot/NC 20 | 10 10 . Destroy Leader 72 | . 62 10 Successful Hack 17 | . 17 . Select Force Hacks 30 | . 30 . Destroy Structure 35 | . 35 . Lose Combat Pursuer 90 | . 30 60 Influence Decreases 468 | 10 404 54 Time Decay 428 | 10 384 34 Lost Part 40 | . 20 20 Squads Dispatched 4 | . 4 . Investigation 2 | . 2 . Extermination . | . . . Reinforcement 2 | . 2 . Assault . | . . . Garrison . | . . . Intercept . | . . . Searches Triggered . | . . . Construction Impeded . | . . . Haulers Reinforced . | . . . Active Scanning Responses . | . . . Cargo Convoy Interrupts . | . . . Stealth | -11 -10 -10 --------- Run | Yrd Mat Sub Distress Signals 1 | . 1 . Communications Jammed . | . . . Distress Signals . | . . . Times Spotted 39 | . 25 14 Peak Tracking Total 7 | . 7 6 Tactical Retreats 3 | . 2 1 Traps | -11 -10 -10 ------- Run | Yrd Mat Sub Traps Triggered 1 | . . 1 Indirectly . | . . . Trap Hack Attempts . | . . . Triggered . | . . . Disarmed . | . . . Reprogrammed . | . . . Reused . | . . . Traps Extracted . | . . . Installed . | . . . Triggered . | . . . Machines | -11 -10 -10 ---------- Run | Yrd Mat Sub Machines Disabled 4 | . . 4 Max in Single Turn 2 | . . 2 Machines Repaired . | . . . Machines Dismantled . | . . . Machines Sabotaged . | . . . Overloaded Fab Kills . | . . . Hacking | -11 -10 -10 --------- Run | Yrd Mat Sub Machines Accessed 10 | . 8 2 Terminals 7 | . 7 . Fabricators . | . . . Repair Stations . | . . . Recycling Units 1 | . 1 . Scanalyzers . | . . . Garrison Access . | . . . Total Hacks 27 | . 24 3 Successful 17 | . 14 3 Failed 10 | . 10 . Catastrophic . | . . . Database Lockouts . | . . . Manual 23 | . 23 . Terminals 23 | . 23 . Fabricators . | . . . Repair Stations . | . . . Recycling Units 1 | . 1 . Scanalyzers . | . . . Garrison Access . | . . . Terminal Hacks 4 | . 1 3 Record 1 | . . 1 Open Door 1 | . . 1 Terminal Index 1 | . 1 . Release Object 1 | . . 1 Fabricator Hacks . | . . . Repair Station Hacks . | . . . Recycling Unit Hacks . | . . . Scanalyzer . | . . . Garrison Access Hacks . | . . . Unauthorized Hacks 13 | . 13 . Terminals 12 | . 12 . Botnet 4 | . 4 . Operators 1 | . 1 . Skim 7 | . 7 . Fabricators . | . . . Repair Stations . | . . . Recycling Units 1 | . 1 . Tunnel 1 | . 1 . Scanalyzers . | . . . Garrison Access . | . . . Data Cores Recovered . | . . . Used . | . . . Hacking Detections 7 | . 7 . Full Trace Events 1 | . 1 . Feedback Events . | . . . Feedback Blocked . | . . . Robot Schematics Acquired . | . . . Robots Built . | . . . Authchips . | . . . Time . | . . . Total Robot Build Rating . | . . . Part Schematics Acquired . | . . . Parts Built . | . . . Authchips . | . . . Time . | . . . Total Part Build Rating . | . . . Parts Repaired . | . . . Time . | . . . Parts Recycled . | . . . Recycled Matter . | . . . Retrieved Matter . | . . . Retrieved Components . | . . . Parts Scanalyzed . | . . . Part Schematics Acquired . | . . . Parts Damaged . | . . . Bothacking | -11 -10 -10 ------------ Run | Yrd Mat Sub Used RIF Installer . | . . . Robots Hacked . | . . . Non-combat . | . . . Combat . | . . . Robot Hacks Applied . | . . . Relay Couplers Released . | . . . Fabnet Peak Effective % . | . . . Robots Rewired . | . . . Allies Hacked . | . . . Hacks Repelled . | . . . Allies | -11 -10 -10 -------- Run | Yrd Mat Sub Total Allies . | . . . Largest Group . | . . . Highest-Rated Group . | . . . Highest-Rated Ally . | . . . Total Orders . | . . . Ally Attacks . | . . . Total Damage . | . . . Kills . | . . . Allies Corrupted . | . . . Allies Melted . | . . . Intel | -11 -10 -10 ------- Run | Yrd Mat Sub Active Infowar (turns) 1546 | . 585 961 Optics 3 | . . 3 Structural 1543 | . 585 958 Robot Analysis Total . | . . . Derelict Logs Recovered 1 | . . 1 Drone Launches . | . . . Drone Recoveries . | . . . Exploration | -11 -10 -10 ------------- Run | Yrd Mat Sub Turns Passed 2974 | 70 1638 1266 Spaces Moved 1582 | 44 752 786 Core 1 | 1 . . Treads . | . . . Legs . | . . . Wheels 1581 | 43 752 786 Hover . | . . . Flight . | . . . Fastest Speed 50 | 50 100 145 Average Speed 136 | 98 129 145 Slowest Speed 145 | 100 145 145 Overloaded Moves . | . . . Propulsion Burnouts . | . . . Robots Hopped . | . . . Potential Cave-ins . | . . . Cave-ins Triggered . | . . . Exploration Rate (%) 47 | 3 97 43 Regions Visited 2 Branch Regions 1 Pre-discovered Areas 1 | . 1 . Known Exits Taken . | . . . Unknown Exits Taken 2 | 1 1 . Scrap Searched 9 | . . 9 Spaces Dug 2 | . 2 . Terrain Destroyed 79 | . 29 50 Melee 2 | . 2 . Projectile 3 | . 3 . AOE 74 | . 24 50 Terrain Rammed . | . . . Walls Destroyed . | . . . Machines Disabled . | . . . Actions | -11 -10 -10 --------- Run | Yrd Mat Sub Total 2227 | 57 1308 862 Wait 475 | . 460 15 Move 1580 | 43 751 786 Hop . | . . . Pick Up 19 | 3 12 4 Fast Attach 14 | 5 8 1 Attach 4 | . 1 3 Detach 3 | . 2 1 Swap 22 | . 9 13 Drop 17 | . 7 10 Fire 90 | 6 55 29 Melee 2 | . 2 . Ram 1 | . 1 . Kick . | . . . Crush . | . . . Escape Stasis . | . . . Rewire . | . . . Trap . | . . . Miscellaneous . | . . . Route ------- -11/Scrapyard -10/Materials (discovered 6 exits: [*Mat x3] / [*Min x2] / *Sub) -10/Subcaves (discovered 3 exits: Mat x2 / [*Rec]) History --------- Turn | Location | Event 9 | -11/Scrapyard | Discovered new exit (range 15) 71 | -11/Scrapyard | Entered Materials 243 | -10/Materials | Discovered new exit (range 15) 307 | -10/Materials | Build established: Mutant 440 | -10/Materials | Discovered new exit (range 7) 628 | -10/Materials | Discovered new exit (range 5) 671 | -10/Materials | Derelicts attacked the area 848 | -10/Materials | Discovered new exit (range 16) 959 | -10/Materials | Core integrity fell below 50% 1080 | -10/Materials | Discovered new exit (range 16) 1250 | -10/Materials | Discovered new exit (range 13) 1273 | -10/Materials | Learned location of 1 exit from Storage 1353 | -10/Materials | Learned 2 Storage zone layouts 1539 | -10/Materials | Learned 4 Recycling zone layouts 1603 | -10/Materials | Learned location of 2 exits from Materials 1709 | -10/Materials | Entered Subcaves 1710 | -10/Subcaves | Approached by a straggling Scientist 1710 | -10/Subcaves | Identified exit to Materials 1729 | -10/Subcaves | Shifting Twisted Machinery released Barrage Gun 1732 | -10/Subcaves | Shifting Twisted Machinery released Barrage Gun 2004 | -10/Subcaves | Core integrity fell below 20% 2043 | -10/Subcaves | Lost 3 parts (1n1u1w) 2219 | -10/Subcaves | Disturbed a concealed Subdweller 2403 | -10/Subcaves | Learned 2 Materials zone layouts 2521 | -10/Subcaves | Shifting Twisted Machinery released Sub. Power Source 2525 | -10/Subcaves | Shifting Twisted Machinery released Sub. Optics 2791 | -10/Subcaves | Found SUBCON Basin 2956 | -10/Subcaves | Discovered new exit (range 14) 2975 | -10/Subcaves | Destroyed by Autobeam Turret with Autobeam Last Messages --------------- Ejecting SUBCON Basin... Delivery behind schedule, handle with care! 02791_ Acquired SUBCON Basin. 02799_ Extracted 56 matter. 02901_ Acquired 3 matter. 02904_ Acquired 7 matter. 02956_ S-10 Pest springs to life. 02956_ EXIT=FOUND 02956_ S-10 Pest springs to life. 02964_ S-10 Pest destroyed. 02968_ Flight Unit fries itself beyond repair. 02968_ Destroyed Flight Unit. 02968_ S-10 Pest destroyed. 02968_ Machine disabled. 02968_ S-10 Pest destroyed. 02971_ Machine disabled. 02973_ Lgt. Assault Rifle fries itself beyond repair. 02974_ Flight Unit fries itself beyond repair. 02975_ Machine disabled. Map ----- +----------------------------------------------------+ | ### ! ##"### # | | #### =%## | | ###### *=##%& %% | | # ###### ##% % ## # | | ####??## ###### #### | | ####??### ## ######### ### | | ######### ### ############ | | ######### ### ########### ## | | ## ######### ##### # ######## ### | | #### ###### #### ### | | ## ##?### """ ### ## | | #### ###### """#### ### | | ####### ###### """##### ### | | ####### #### ##""" ### "" ###### | | ####### ##""""##" "" ########## | | ###### ##""""""" "#######??#### | | #### ###"""""" ######???????? | | ### ## ######""""###??????????? | | ## ##### ####### "##???????????? | | ### ## ### ####### " "###???????????? | | ### ####### ####### """"###???????????? | | ## ####?## #### " """"###????????????? | | ## #####???#######"""u ##"###????????????? | | ## ##########?######### #####?????????????? | | ## ########????######### "#####?????????????? | | #######?????????## ###;;@ "##????????????????? | | ######??????????## ; ###????????????????? | | ????????????????## ####????????????????? | | ????????????????## ;;##?????????????????? | | ????????????????## [ #??????????????????? | | ????????????????### * #??????????????????? | | ????????????????### ;;;#??????????????????? | | ?????????????????## ??????????????????? | | ?????????????????## ?????????????????? | | ?????????????????## % ;????????????????? | | ?????????????????" t ;????????????????? | | ?????????????????" #; <;???????????????? | | ???????????????""" ## t ;##??????????????? | | ???????????????#####; ; * ;#???????????????? | | ???????????????###### #; "##???????????????? | | ???????????????????? #; """?????????????????? | | ???????????????????? #########?????????????????? | | ???????????????????? ##########??????????????????? | | ??????????????????? ###?????????????????????????? | | ?????????????????????????????????????????????????? | | ?????????????????????????????????????????????????? | | ?????????????????????????????????????????????????? | | ?????????????????????????????????????????????????? | | ???????????????????????????????????????